[Event "Titled Tuesday Blitz September 27 Late 2022"]
[White "Murtazin, Ruslan"]
[Black "Wieczorek, Oskar"]
[WhiteFideId "24175960"]
[BlackFideId "1133950"]
[WhiteElo "2212"]
[BlackElo "2302"]
[Result "0-1"]
[Round "03"]
[TimeControl "180+1"]
[Date "2022.09.28"]
[WhiteClock "0:00:01"]
[BlackClock "0:00:14"]

1. e4 {[%clk 0:03:00]}  c5 {[%clk 0:02:55]} 2. Nf3 {[%clk 0:02:59]}  d6 {[%clk 0:02:55]} 3. d4 {[%clk 0:02:59]}  cxd4 {[%clk 0:02:56]} 4. Nxd4 {[%clk 0:03:00]}  Nf6 {[%clk 0:02:57]} 5. Nc3 {[%clk 0:03:00]}  e6 {[%clk 0:02:57]} 6. Bc4 {[%clk 0:02:54]}  Be7 {[%clk 0:02:56]} 7. O-O {[%clk 0:02:53]}  O-O {[%clk 0:02:56]} 8. f4 {[%clk 0:02:48]}  Nc6 {[%clk 0:02:56]} 9. Be3 {[%clk 0:02:35]}  d5 {[%clk 0:02:55]} 10. exd5 {[%clk 0:02:32]}  exd5 {[%clk 0:02:56]} 11. Be2 {[%clk 0:02:29]}  Re8 {[%clk 0:02:46]} 12. Bf2 {[%clk 0:02:14]}  Bc5 {[%clk 0:02:26]} 13. Bf3 {[%clk 0:01:58]}  Nxd4 {[%clk 0:02:11]} 14. Bxd4 {[%clk 0:01:57]}  Qb6 {[%clk 0:02:11]} 15. Bxc5 {[%clk 0:01:40]}  Qxc5+ {[%clk 0:02:12]} 16. Kh1 {[%clk 0:01:41]}  d4 {[%clk 0:01:56]} 17. Ne2 {[%clk 0:01:34]}  Rd8 {[%clk 0:01:34]} 18. c3 {[%clk 0:01:34]}  Ng4 {[%clk 0:01:17]} 19. Qd2 {[%clk 0:00:40]}  Ne3 {[%clk 0:01:04]} 20. Rfe1 {[%clk 0:00:38]}  Nc4 {[%clk 0:00:48]} 21. cxd4 {[%clk 0:00:14]}  Nxd2 {[%clk 0:00:45]} 22. dxc5 {[%clk 0:00:15]}  Nxf3 {[%clk 0:00:46]} 23. gxf3 {[%clk 0:00:15]}  Be6 {[%clk 0:00:44]} 24. Nc3 {[%clk 0:00:15]}  Rd2 {[%clk 0:00:41]} 25. Re2 {[%clk 0:00:15]}  Rxe2 {[%clk 0:00:40]} 26. Nxe2 {[%clk 0:00:16]}  Rd8 {[%clk 0:00:39]} 27. Nc3 {[%clk 0:00:16]}  Rd2 {[%clk 0:00:33]} 28. Re1 {[%clk 0:00:15]}  Rxb2 {[%clk 0:00:22]} 29. f5 {[%clk 0:00:15]}  Bd7 {[%clk 0:00:23]} 30. Rd1 {[%clk 0:00:11]}  Be8 {[%clk 0:00:21]} 31. Rd8 {[%clk 0:00:11]}  Kf8 {[%clk 0:00:22]} 32. Ne4 {[%clk 0:00:10]}  Ke7 {[%clk 0:00:21]} 33. Ra8 {[%clk 0:00:08]}  Rxa2 {[%clk 0:00:20]} 34. h4 {[%clk 0:00:01]}  Bc6 {[%clk 0:00:19]} 35. h5 {[%clk 0:00:01]}  Ra4 {[%clk 0:00:14]} 0-1


[Site "https://www.chess.com"]

[Event "Titled Tuesday Blitz September 27 Late 2022"]
[White "Navarrete Mendez, Gonzalo Alberto"]
[Black "Rustemov, Alexander"]
[WhiteFideId "5106850"]
[BlackFideId "4119002"]
[WhiteElo "2261"]
[BlackElo "2852"]
[Result "1-0"]
[Round "03"]
[TimeControl "180+1"]
[Date "2022.09.27"]
[WhiteClock "0:00:51"]
[BlackClock "0:00:02"]

1. e4 {[%clk 0:03:00]}  e6 {[%clk 0:02:57]} 2. d4 {[%clk 0:03:00]}  d5 {[%clk 0:02:57]} 3. Nc3 {[%clk 0:03:01]}  Bb4 {[%clk 0:02:57]} 4. e5 {[%clk 0:03:01]}  c5 {[%clk 0:02:57]} 5. a3 {[%clk 0:03:01]}  Bxc3+ {[%clk 0:02:57]} 6. bxc3 {[%clk 0:03:02]}  Ne7 {[%clk 0:02:58]} 7. Qg4 {[%clk 0:03:02]}  O-O {[%clk 0:02:57]} 8. Bd3 {[%clk 0:02:59]}  Qa5 {[%clk 0:02:57]} 9. Bd2 {[%clk 0:02:55]}  Nbc6 {[%clk 0:02:57]} 10. Nf3 {[%clk 0:02:54]}  f5 {[%clk 0:02:57]} 11. Qh3 {[%clk 0:02:55]}  Qa4 {[%clk 0:02:46]} 12. Rg1 {[%clk 0:02:50]}  c4 {[%clk 0:02:43]} 13. Be2 {[%clk 0:02:48]}  Qxc2 {[%clk 0:02:43]} 14. Rc1 {[%clk 0:02:46]}  Qb2 {[%clk 0:02:27]} 15. g4 {[%clk 0:02:35]}  Bd7 {[%clk 0:02:11]} 16. Bd1 {[%clk 0:02:24]}  Na5 {[%clk 0:01:56]} 17. gxf5 {[%clk 0:02:16]}  Nxf5 {[%clk 0:01:55]} 18. Nh4 {[%clk 0:02:14]}  Nb3 {[%clk 0:01:47]} 19. Rc2 {[%clk 0:02:08]}  Qb1 {[%clk 0:01:41]} 20. Nxf5 {[%clk 0:01:59]}  Rxf5 {[%clk 0:01:40]} 21. Bh6 {[%clk 0:01:56]}  g6 {[%clk 0:01:37]} 22. Qh4 {[%clk 0:01:51]}  Re8 {[%clk 0:01:33]} 23. Rg5 {[%clk 0:01:47]}  Rf7 {[%clk 0:01:23]} 24. Qg3 {[%clk 0:01:44]}  Kh8 {[%clk 0:01:04]} 25. h4 {[%clk 0:01:33]}  Ba4 {[%clk 0:00:49]} 26. Rg4 {[%clk 0:01:29]}  Nxd4 {[%clk 0:00:47]} 27. Rc1 {[%clk 0:01:23]}  Qb2 {[%clk 0:00:33]} 28. cxd4 {[%clk 0:01:18]}  Bxd1 {[%clk 0:00:30]} 29. Rxd1 {[%clk 0:01:14]}  c3 {[%clk 0:00:28]} 30. Rf4 {[%clk 0:01:06]}  c2 {[%clk 0:00:19]} 31. Rxf7 {[%clk 0:01:03]}  cxd1=Q+ {[%clk 0:00:19]} 32. Kxd1 {[%clk 0:01:04]}  Rc8 {[%clk 0:00:16]} 33. Bd2 {[%clk 0:00:57]}  Rc2 {[%clk 0:00:09]} 34. Qf4 {[%clk 0:00:53]}  Qb1+ {[%clk 0:00:06]} 35. Bc1 {[%clk 0:00:52]}  Rxc1+ {[%clk 0:00:02]} 36. Qxc1 {[%clk 0:00:53]}  Qd3+ {[%clk 0:00:02]} 37. Qd2 {[%clk 0:00:53]}  Qb1+ {[%clk 0:00:02]} 38. Ke2 {[%clk 0:00:53]}  Kg8 {[%clk 0:00:02]} 39. Rc7 {[%clk 0:00:51]}  Qe4+ {[%clk 0:00:02]} 40. Qe3 {[%clk 0:00:51]}  Qg4+ {[%clk 0:00:02]} 41. Qf3 {[%clk 0:00:51]} 1-0


[Site "https://www.chess.com"]

[Event "Titled Tuesday Blitz September 27 Late 2022"]
[White "Ozates, Tuna"]
[Black "Kravtsiv, Martyn"]
[WhiteFideId "6354521"]
[BlackFideId "14113147"]
[WhiteElo "1887"]
[BlackElo "2694"]
[Result "0-1"]
[Round "03"]
[TimeControl "180+1"]
[Date "2022.09.27"]
[WhiteClock "0:00:18"]
[BlackClock "0:00:29"]

1. e4 {[%clk 0:03:00]}  e5 {[%clk 0:02:59]} 2. Nf3 {[%clk 0:03:00]}  Nc6 {[%clk 0:02:59]} 3. Bb5 {[%clk 0:02:59]}  a6 {[%clk 0:02:59]} 4. Ba4 {[%clk 0:02:59]}  Nf6 {[%clk 0:02:58]} 5. d3 {[%clk 0:03:00]}  b5 {[%clk 0:02:57]} 6. Bb3 {[%clk 0:03:00]}  Be7 {[%clk 0:02:57]} 7. O-O {[%clk 0:02:58]}  d6 {[%clk 0:02:56]} 8. c3 {[%clk 0:02:59]}  O-O {[%clk 0:02:56]} 9. Nbd2 {[%clk 0:02:58]}  Na5 {[%clk 0:02:49]} 10. Bc2 {[%clk 0:02:58]}  c5 {[%clk 0:02:50]} 11. a3 {[%clk 0:02:58]}  Qc7 {[%clk 0:02:48]} 12. Re1 {[%clk 0:02:57]}  Nc6 {[%clk 0:02:44]} 13. Nf1 {[%clk 0:02:58]}  d5 {[%clk 0:02:44]} 14. Ng3 {[%clk 0:02:56]}  d4 {[%clk 0:02:44]} 15. cxd4 {[%clk 0:02:53]}  exd4 {[%clk 0:02:27]} 16. e5 {[%clk 0:02:45]}  Nd5 {[%clk 0:02:27]} 17. Bb3 {[%clk 0:02:41]}  Be6 {[%clk 0:02:25]} 18. Ne4 {[%clk 0:02:39]}  h6 {[%clk 0:02:23]} 19. Bd2 {[%clk 0:02:35]}  Rfd8 {[%clk 0:02:15]} 20. Rc1 {[%clk 0:02:34]}  Qa7 {[%clk 0:02:15]} 21. Bxh6 {[%clk 0:02:06]}  gxh6 {[%clk 0:02:13]} 22. Qd2 {[%clk 0:02:07]}  Kh7 {[%clk 0:02:11]} 23. Nf6+ {[%clk 0:01:57]}  Bxf6 {[%clk 0:01:58]} 24. exf6 {[%clk 0:01:58]}  Rg8 {[%clk 0:01:49]} 25. Ne5 {[%clk 0:01:47]}  Nxe5 {[%clk 0:01:47]} 26. Rxe5 {[%clk 0:01:48]}  Qb7 {[%clk 0:01:46]} 27. g3 {[%clk 0:01:31]}  Rae8 {[%clk 0:01:23]} 28. Rxc5 {[%clk 0:01:23]}  Nxf6 {[%clk 0:01:19]} 29. Bd1 {[%clk 0:01:03]}  Bh3 {[%clk 0:01:13]} 30. f3 {[%clk 0:00:50]}  Rxe5 {[%clk 0:01:00]} 31. Rxe5 {[%clk 0:00:50]}  Re8 {[%clk 0:00:59]} 32. Qf4 {[%clk 0:00:44]}  Rxe5 {[%clk 0:00:52]} 33. Qxe5 {[%clk 0:00:45]}  Qc6 {[%clk 0:00:50]} 34. Kf2 {[%clk 0:00:36]}  Qc1 {[%clk 0:00:41]} 35. Be2 {[%clk 0:00:34]}  Qh1 {[%clk 0:00:30]} 36. Qxf6 {[%clk 0:00:23]}  Qxh2+ {[%clk 0:00:30]} 37. Ke1 {[%clk 0:00:23]}  Qxg3+ {[%clk 0:00:30]} 38. Kd1 {[%clk 0:00:19]}  Qg1+ {[%clk 0:00:29]} 39. Kc2 {[%clk 0:00:19]}  Be6 {[%clk 0:00:30]} 40. Qxd4 {[%clk 0:00:18]}  Qxd4 {[%clk 0:00:29]} 0-1


[Site "https://www.chess.com"]

[Event "Titled Tuesday Blitz September 27 Late 2022"]
[White "Preotu, Razvan"]
[Black "Kollars, Dmitrij"]
[WhiteFideId "2613280"]
[BlackFideId "12909572"]
[WhiteElo "2407"]
[BlackElo "2584"]
[Result "1/2-1/2"]
[Round "03"]
[TimeControl "180+1"]
[Date "2022.09.27"]
[WhiteClock "0:00:05"]
[BlackClock "0:00:10"]

1. e4 {[%clk 0:03:00]}  c5 {[%clk 0:02:54]} 2. Nf3 {[%clk 0:03:01]}  d6 {[%clk 0:02:54]} 3. d4 {[%clk 0:03:00]}  cxd4 {[%clk 0:02:54]} 4. Nxd4 {[%clk 0:03:00]}  Nf6 {[%clk 0:02:55]} 5. Nc3 {[%clk 0:03:00]}  Nc6 {[%clk 0:02:56]} 6. Bg5 {[%clk 0:02:59]}  e6 {[%clk 0:02:56]} 7. Qd2 {[%clk 0:02:59]}  a6 {[%clk 0:02:56]} 8. O-O-O {[%clk 0:02:58]}  h6 {[%clk 0:02:55]} 9. Be3 {[%clk 0:02:56]}  Bd7 {[%clk 0:02:52]} 10. f3 {[%clk 0:02:53]}  Nxd4 {[%clk 0:02:50]} 11. Qxd4 {[%clk 0:02:51]}  Bc6 {[%clk 0:02:48]} 12. Kb1 {[%clk 0:02:23]}  d5 {[%clk 0:02:47]} 13. e5 {[%clk 0:01:56]}  Nd7 {[%clk 0:02:47]} 14. f4 {[%clk 0:01:56]}  Bc5 {[%clk 0:02:47]} 15. Qd2 {[%clk 0:01:56]}  Bxe3 {[%clk 0:02:48]} 16. Qxe3 {[%clk 0:01:56]}  g5 {[%clk 0:02:49]} 17. f5 {[%clk 0:01:44]}  Qb6 {[%clk 0:02:48]} 18. Qe1 {[%clk 0:01:39]}  O-O-O {[%clk 0:02:35]} 19. Be2 {[%clk 0:01:32]}  d4 {[%clk 0:02:33]} 20. Bh5 {[%clk 0:01:01]}  dxc3 {[%clk 0:02:30]} 21. Qxc3 {[%clk 0:01:02]}  Qc5 {[%clk 0:02:18]} 22. Rxd7 {[%clk 0:01:01]}  Qxc3 {[%clk 0:02:05]} 23. Rxd8+ {[%clk 0:01:01]}  Kxd8 {[%clk 0:01:58]} 24. Rd1+ {[%clk 0:00:59]}  Kc7 {[%clk 0:01:45]} 25. bxc3 {[%clk 0:00:59]}  exf5 {[%clk 0:01:37]} 26. Bxf7 {[%clk 0:00:58]}  Rd8 {[%clk 0:01:35]} 27. Re1 {[%clk 0:00:47]}  Be4 {[%clk 0:01:28]} 28. g4 {[%clk 0:00:44]}  Kd7 {[%clk 0:01:22]} 29. Rd1+ {[%clk 0:00:25]}  Ke7 {[%clk 0:01:21]} 30. Rxd8 {[%clk 0:00:26]}  Kxd8 {[%clk 0:01:22]} 31. Bg6 {[%clk 0:00:26]}  Kc7 {[%clk 0:01:05]} 32. Bxf5 {[%clk 0:00:24]}  Bf3 {[%clk 0:01:05]} 33. c4 {[%clk 0:00:21]}  Kc6 {[%clk 0:01:03]} 34. Kb2 {[%clk 0:00:21]}  Kc5 {[%clk 0:01:04]} 35. Kc3 {[%clk 0:00:21]}  Be2 {[%clk 0:00:57]} 36. e6 {[%clk 0:00:21]}  Kd6 {[%clk 0:00:57]} 37. Kd4 {[%clk 0:00:22]}  b6 {[%clk 0:00:57]} 38. a3 {[%clk 0:00:18]}  a5 {[%clk 0:00:57]} 39. Ke3 {[%clk 0:00:13]}  Bxc4 {[%clk 0:00:56]} 40. Kd4 {[%clk 0:00:07]}  Bd5 {[%clk 0:00:38]} 41. c3 {[%clk 0:00:06]}  Bc6 {[%clk 0:00:17]} 42. e7 {[%clk 0:00:06]}  Be8 {[%clk 0:00:14]} 43. Be4 {[%clk 0:00:03]}  Kxe7 {[%clk 0:00:13]} 44. Ke5 {[%clk 0:00:03]}  Bf7 {[%clk 0:00:12]} 45. Bd5 {[%clk 0:00:03]}  Bg6 {[%clk 0:00:12]} 46. Bc6 {[%clk 0:00:02]}  Bc2 {[%clk 0:00:10]} 47. Bf3 {[%clk 0:00:02]}  Bd3 {[%clk 0:00:10]} 48. Bd5 {[%clk 0:00:02]}  Be2 {[%clk 0:00:10]} 49. Be6 {[%clk 0:00:03]}  Bd3 {[%clk 0:00:09]} 50. Bf5 {[%clk 0:00:03]}  Bc4 {[%clk 0:00:09]} 51. Be4 {[%clk 0:00:04]}  Be6 {[%clk 0:00:10]} 52. Bf5 {[%clk 0:00:04]}  Bf7 {[%clk 0:00:10]} 53. Be4 {[%clk 0:00:04]}  Bg8 {[%clk 0:00:10]} 54. Bf5 {[%clk 0:00:04]}  Bc4 {[%clk 0:00:10]} 55. Be4 {[%clk 0:00:05]}  Bb3 {[%clk 0:00:10]} 56. Bf5 {[%clk 0:00:05]}  Bc4 {[%clk 0:00:10]} 1/2-1/2


[Site "https://www.chess.com"]

[Event "Titled Tuesday Blitz September 27 Late 2022"]
[White "Rangel, Daniel"]
[Black "Harvey, Marcus R"]
[WhiteFideId "2124475"]
[BlackFideId "400092"]
[WhiteElo "2225"]
[BlackElo "2485"]
[Result "1-0"]
[Round "03"]
[TimeControl "180+1"]
[Date "2022.09.27"]
[WhiteClock "0:00:41"]
[BlackClock "0:00:05"]

1. c4 {[%clk 0:03:00]}  e5 {[%clk 0:02:59]} 2. g3 {[%clk 0:03:01]}  Nc6 {[%clk 0:02:56]} 3. Bg2 {[%clk 0:03:01]}  g6 {[%clk 0:02:56]} 4. Nc3 {[%clk 0:03:01]}  Bg7 {[%clk 0:02:56]} 5. e3 {[%clk 0:03:01]}  Nge7 {[%clk 0:02:56]} 6. Nge2 {[%clk 0:03:01]}  O-O {[%clk 0:02:56]} 7. Rb1 {[%clk 0:02:57]}  a5 {[%clk 0:02:51]} 8. a3 {[%clk 0:02:57]}  d6 {[%clk 0:02:50]} 9. b4 {[%clk 0:02:56]}  axb4 {[%clk 0:02:51]} 10. axb4 {[%clk 0:02:56]}  Be6 {[%clk 0:02:50]} 11. Nd5 {[%clk 0:02:55]}  Qd7 {[%clk 0:02:45]} 12. h4 {[%clk 0:02:54]}  h5 {[%clk 0:02:42]} 13. d3 {[%clk 0:02:50]}  Nf5 {[%clk 0:02:36]} 14. b5 {[%clk 0:02:35]}  Na5 {[%clk 0:02:36]} 15. b6 {[%clk 0:02:29]}  Bxd5 {[%clk 0:02:15]} 16. Bxd5 {[%clk 0:02:21]}  c6 {[%clk 0:02:15]} 17. Bg2 {[%clk 0:02:21]}  d5 {[%clk 0:02:14]} 18. cxd5 {[%clk 0:02:07]}  cxd5 {[%clk 0:02:13]} 19. O-O {[%clk 0:02:07]}  Ne7 {[%clk 0:02:01]} 20. Ba3 {[%clk 0:01:55]}  Rfd8 {[%clk 0:02:01]} 21. Nc3 {[%clk 0:01:52]}  Nac6 {[%clk 0:01:50]} 22. Bxe7 {[%clk 0:01:35]}  Nxe7 {[%clk 0:01:51]} 23. e4 {[%clk 0:01:34]}  d4 {[%clk 0:01:49]} 24. Nd5 {[%clk 0:01:35]}  Nxd5 {[%clk 0:01:43]} 25. exd5 {[%clk 0:01:35]}  Ra6 {[%clk 0:01:41]} 26. Qb3 {[%clk 0:01:31]}  Rc8 {[%clk 0:01:25]} 27. Rfc1 {[%clk 0:01:26]}  Rxc1+ {[%clk 0:01:25]} 28. Rxc1 {[%clk 0:01:25]}  Qd6 {[%clk 0:01:25]} 29. Rc6 {[%clk 0:00:45]}  bxc6 {[%clk 0:00:25]} 30. b7 {[%clk 0:00:45]}  Qb8 {[%clk 0:00:16]} 31. dxc6 {[%clk 0:00:45]}  Rxc6 {[%clk 0:00:04]} 32. Bxc6 {[%clk 0:00:46]}  e4 {[%clk 0:00:05]} 33. Bxe4 {[%clk 0:00:44]}  Be5 {[%clk 0:00:05]} 34. Bxg6 {[%clk 0:00:43]}  Qc7 {[%clk 0:00:05]} 35. b8=Q+ {[%clk 0:00:40]}  Qxb8 {[%clk 0:00:05]} 36. Qxf7+ {[%clk 0:00:41]} 1-0


[Site "https://www.chess.com"]

[Event "Titled Tuesday Blitz September 27 Late 2022"]
[White "Romero Ruscalleda, Josep"]
[Black "Ozen, Bahadir"]
[WhiteFideId "2231859"]
[BlackFideId "6337058"]
[WhiteElo "2381"]
[BlackElo "2503"]
[Result "0-1"]
[Round "03"]
[TimeControl "180+1"]
[Date "2022.09.28"]
[WhiteClock "0:00:04"]
[BlackClock "0:00:23"]

1. e4 {[%clk 0:02:53]}  d6 {[%clk 0:02:59]} 2. d4 {[%clk 0:02:52]}  g6 {[%clk 0:03:00]} 3. Nc3 {[%clk 0:02:51]}  Bg7 {[%clk 0:02:59]} 4. Nf3 {[%clk 0:02:48]}  c6 {[%clk 0:02:58]} 5. a4 {[%clk 0:02:47]}  Nf6 {[%clk 0:02:58]} 6. Be2 {[%clk 0:02:45]}  O-O {[%clk 0:02:58]} 7. O-O {[%clk 0:02:45]}  Qc7 {[%clk 0:02:58]} 8. Bf4 {[%clk 0:02:44]}  Nh5 {[%clk 0:02:57]} 9. Bg5 {[%clk 0:02:44]}  e5 {[%clk 0:02:52]} 10. Qd2 {[%clk 0:02:35]}  Re8 {[%clk 0:02:42]} 11. Rfd1 {[%clk 0:02:31]}  Nd7 {[%clk 0:02:27]} 12. dxe5 {[%clk 0:02:23]}  dxe5 {[%clk 0:02:26]} 13. Qd6 {[%clk 0:02:19]}  Qxd6 {[%clk 0:02:26]} 14. Rxd6 {[%clk 0:02:18]}  Bf8 {[%clk 0:02:23]} 15. Rd2 {[%clk 0:02:13]}  h6 {[%clk 0:02:08]} 16. Be3 {[%clk 0:02:11]}  Nf4 {[%clk 0:02:05]} 17. Bc4 {[%clk 0:02:02]}  Nc5 {[%clk 0:01:40]} 18. Rad1 {[%clk 0:01:52]}  g5 {[%clk 0:00:55]} 19. Rd8 {[%clk 0:01:43]}  Be6 {[%clk 0:00:55]} 20. Rxa8 {[%clk 0:01:43]}  Rxa8 {[%clk 0:00:56]} 21. Nxe5 {[%clk 0:01:41]}  Bxc4 {[%clk 0:00:55]} 22. Nxc4 {[%clk 0:01:40]}  Re8 {[%clk 0:00:54]} 23. f3 {[%clk 0:01:37]}  b6 {[%clk 0:00:54]} 24. Kf2 {[%clk 0:01:20]}  Nce6 {[%clk 0:00:54]} 25. Nd6 {[%clk 0:01:17]}  Rb8 {[%clk 0:00:50]} 26. Nf5 {[%clk 0:01:14]}  a5 {[%clk 0:00:44]} 27. Rd7 {[%clk 0:01:07]}  Ng6 {[%clk 0:00:40]} 28. g3 {[%clk 0:00:48]}  Ne5 {[%clk 0:00:40]} 29. Ra7 {[%clk 0:00:44]}  Nc4 {[%clk 0:00:38]} 30. Bc1 {[%clk 0:00:43]}  b5 {[%clk 0:00:38]} 31. b3 {[%clk 0:00:41]}  Bc5+ {[%clk 0:00:38]} 32. Ke2 {[%clk 0:00:36]}  Bxa7 {[%clk 0:00:38]} 33. bxc4 {[%clk 0:00:37]}  b4 {[%clk 0:00:39]} 34. Nd1 {[%clk 0:00:30]}  Nd4+ {[%clk 0:00:39]} 35. Nxd4 {[%clk 0:00:27]}  Bxd4 {[%clk 0:00:40]} 36. Bd2 {[%clk 0:00:20]}  b3 {[%clk 0:00:34]} 37. cxb3 {[%clk 0:00:20]}  Rxb3 {[%clk 0:00:35]} 38. f4 {[%clk 0:00:18]}  g4 {[%clk 0:00:34]} 39. f5 {[%clk 0:00:17]}  h5 {[%clk 0:00:34]} 40. Bg5 {[%clk 0:00:12]}  Ra3 {[%clk 0:00:33]} 41. Bd2 {[%clk 0:00:08]}  Rxa4 {[%clk 0:00:27]} 42. Kd3 {[%clk 0:00:08]}  Be5 {[%clk 0:00:27]} 43. c5 {[%clk 0:00:07]}  Rd4+ {[%clk 0:00:26]} 44. Ke3 {[%clk 0:00:08]}  Rc4 {[%clk 0:00:23]} 45. Bxa5 {[%clk 0:00:06]}  Rxc5 {[%clk 0:00:23]} 46. Bb6 {[%clk 0:00:05]}  Rb5 {[%clk 0:00:23]} 47. Ba7 {[%clk 0:00:05]}  Rb3+ {[%clk 0:00:24]} 48. Kd2 {[%clk 0:00:05]}  Ra3 {[%clk 0:00:23]} 49. Bc5 {[%clk 0:00:04]}  Ra2+ {[%clk 0:00:24]} 50. Kd3 {[%clk 0:00:04]}  Rxh2 {[%clk 0:00:24]} 51. Bf2 {[%clk 0:00:03]}  Rh1 {[%clk 0:00:21]} 52. Ke2 {[%clk 0:00:03]}  h4 {[%clk 0:00:21]} 53. gxh4 {[%clk 0:00:02]}  g3 {[%clk 0:00:22]} 54. Be3 {[%clk 0:00:03]}  g2 {[%clk 0:00:22]} 55. h5 {[%clk 0:00:02]}  Bf4 {[%clk 0:00:21]} 56. Bf2 {[%clk 0:00:01]}  Bg3 {[%clk 0:00:22]} 57. Be3 {[%clk 0:00:01]}  g1=Q {[%clk 0:00:22]} 58. Bxg1 {[%clk 0:00:01]}  Rxg1 {[%clk 0:00:23]} 59. Ne3 {[%clk 0:00:01]}  Be5 {[%clk 0:00:17]} 60. Nc4 {[%clk 0:00:01]}  f6 {[%clk 0:00:17]} 61. Kf3 {[%clk 0:00:01]}  Rg3+ {[%clk 0:00:17]} 62. Ke2 {[%clk 0:00:01]}  Rh3 {[%clk 0:00:17]} 63. Ne3 {[%clk 0:00:01]}  Rxh5 {[%clk 0:00:17]} 64. Kd3 {[%clk 0:00:02]}  Rh3 {[%clk 0:00:17]} 65. Ke2 {[%clk 0:00:01]}  Rxe3+ {[%clk 0:00:18]} 66. Kxe3 {[%clk 0:00:01]}  Kf7 {[%clk 0:00:19]} 67. Kd3 {[%clk 0:00:01]}  Ke7 {[%clk 0:00:19]} 68. Kc4 {[%clk 0:00:02]}  Kd6 {[%clk 0:00:20]} 69. Kb4 {[%clk 0:00:02]}  Kd7 {[%clk 0:00:21]} 70. Kc4 {[%clk 0:00:03]}  Kc7 {[%clk 0:00:22]} 71. Kb4 {[%clk 0:00:04]}  Kb6 {[%clk 0:00:22]} 72. Kc4 {[%clk 0:00:04]}  c5 {[%clk 0:00:21]} 73. Kd5 {[%clk 0:00:04]}  Kb5 {[%clk 0:00:22]} 74. Ke6 {[%clk 0:00:04]}  c4 {[%clk 0:00:23]} 0-1


[Site "https://www.chess.com"]

[Event "Titled Tuesday Blitz September 27 Late 2022"]
[White "Salman, Pavel"]
[Black "Javakhadze, Zurab"]
[WhiteFideId "24153753"]
[BlackFideId "13603647"]
[WhiteElo "2039"]
[BlackElo "2381"]
[Result "1-0"]
[Round "03"]
[TimeControl "180+1"]
[Date "2022.09.28"]
[WhiteClock "0:00:05"]
[BlackClock "0:00:02"]

1. Nf3 {[%clk 0:03:00]}  d5 {[%clk 0:02:59]} 2. g3 {[%clk 0:03:01]}  Nf6 {[%clk 0:02:59]} 3. Bg2 {[%clk 0:03:00]}  e6 {[%clk 0:02:59]} 4. O-O {[%clk 0:03:00]}  Be7 {[%clk 0:02:59]} 5. d3 {[%clk 0:03:01]}  O-O {[%clk 0:03:00]} 6. Nbd2 {[%clk 0:03:02]}  c5 {[%clk 0:03:01]} 7. Re1 {[%clk 0:03:03]}  Nc6 {[%clk 0:03:01]} 8. e4 {[%clk 0:03:03]}  b5 {[%clk 0:02:59]} 9. e5 {[%clk 0:03:03]}  Nd7 {[%clk 0:02:59]} 10. Nf1 {[%clk 0:03:04]}  a5 {[%clk 0:02:58]} 11. h4 {[%clk 0:03:03]}  a4 {[%clk 0:02:58]} 12. a3 {[%clk 0:03:02]}  b4 {[%clk 0:02:58]} 13. h5 {[%clk 0:03:03]}  Bb7 {[%clk 0:02:46]} 14. h6 {[%clk 0:03:02]}  g6 {[%clk 0:02:46]} 15. N1h2 {[%clk 0:03:02]}  d4 {[%clk 0:02:34]} 16. Ng4 {[%clk 0:03:00]}  Nb6 {[%clk 0:02:33]} 17. Bd2 {[%clk 0:02:53]}  bxa3 {[%clk 0:02:28]} 18. bxa3 {[%clk 0:02:52]}  Rb8 {[%clk 0:02:28]} 19. Qc1 {[%clk 0:02:51]}  c4 {[%clk 0:02:21]} 20. Bg5 {[%clk 0:02:49]}  cxd3 {[%clk 0:02:21]} 21. Bxe7 {[%clk 0:02:44]}  Qxe7 {[%clk 0:02:19]} 22. cxd3 {[%clk 0:02:39]}  Nd7 {[%clk 0:02:16]} 23. Qf4 {[%clk 0:02:32]}  Ba8 {[%clk 0:02:12]} 24. Nxd4 {[%clk 0:02:12]}  Nxd4 {[%clk 0:02:11]} 25. Qxd4 {[%clk 0:02:13]}  Bxg2 {[%clk 0:02:10]} 26. Kxg2 {[%clk 0:02:14]}  Nc5 {[%clk 0:01:56]} 27. Rab1 {[%clk 0:02:04]}  Rbd8 {[%clk 0:01:38]} 28. Qf4 {[%clk 0:01:53]}  Nxd3 {[%clk 0:01:35]} 29. Qxa4 {[%clk 0:01:42]}  Nxe1+ {[%clk 0:01:33]} 30. Rxe1 {[%clk 0:01:43]}  Qb7+ {[%clk 0:01:30]} 31. Kh2 {[%clk 0:01:39]}  Rd3 {[%clk 0:01:24]} 32. Nf6+ {[%clk 0:01:20]}  Kh8 {[%clk 0:01:24]} 33. Re4 {[%clk 0:01:16]}  Rfd8 {[%clk 0:00:56]} 34. Qa5 {[%clk 0:00:54]}  Rd1 {[%clk 0:00:51]} 35. a4 {[%clk 0:00:37]}  Qb1 {[%clk 0:00:34]} 36. Kh3 {[%clk 0:00:37]}  Qd3 {[%clk 0:00:26]} 37. Qc7 {[%clk 0:00:23]}  Rf8 {[%clk 0:00:19]} 38. Qe7 {[%clk 0:00:22]}  Qd8 {[%clk 0:00:18]} 39. Qb4 {[%clk 0:00:17]}  Rh1+ {[%clk 0:00:17]} 40. Kg2 {[%clk 0:00:17]}  Rxh6 {[%clk 0:00:16]} 41. a5 {[%clk 0:00:17]}  g5 {[%clk 0:00:14]} 42. a6 {[%clk 0:00:17]}  Qa8 {[%clk 0:00:14]} 43. f3 {[%clk 0:00:15]}  Qc8 {[%clk 0:00:10]} 44. Rc4 {[%clk 0:00:14]}  Qa8 {[%clk 0:00:08]} 45. a7 {[%clk 0:00:14]}  Rd8 {[%clk 0:00:07]} 46. Qe7 {[%clk 0:00:13]}  Rd2+ {[%clk 0:00:06]} 47. Kg1 {[%clk 0:00:14]}  Rd1+ {[%clk 0:00:05]} 48. Kf2 {[%clk 0:00:14]}  Rh2+ {[%clk 0:00:04]} 49. Ke3 {[%clk 0:00:14]}  Re1+ {[%clk 0:00:03]} 50. Kd3 {[%clk 0:00:14]}  Rd1+ {[%clk 0:00:04]} 51. Kc3 {[%clk 0:00:12]}  Rc1+ {[%clk 0:00:05]} 52. Kb4 {[%clk 0:00:11]}  Rb2+ {[%clk 0:00:04]} 53. Ka3 {[%clk 0:00:10]}  Rxc4 {[%clk 0:00:04]} 54. Kxb2 {[%clk 0:00:07]}  Kg7 {[%clk 0:00:01]} 55. Ne8+ {[%clk 0:00:04]}  Kg6 {[%clk 0:00:01]} 56. Qf6+ {[%clk 0:00:05]}  Kh5 {[%clk 0:00:02]} 57. Ng7# {[%clk 0:00:05]} 1-0


[Site "https://www.chess.com"]